fUSD/lending_fUSD_20260127
["ID","MTS","AMOUNT","RATE_DAILY","PERIOD"]
[403756280,1769522591416,-500.0,0.00043378,120]
[403756281,1769522591507,-500.0,0.00043378,120]
[403756282,1769522591636,-198.62,0.00043378,120]
[403756283,1769522591760,-500.0,0.00043378,120]
[403756284,1769522591881,-194.16,0.00043378,120]
[403756285,1769522591994,-567.23842671,0.00043378,120]
[403756286,1769522592109,-526.94656333,0.00043378,120]
[403756287,1769522592220,-502.54680994,0.00043378,120]
[403756288,1769522592329,-527.17466536,0.00043378,120]
[403756289,1769522592442,-500.0,0.00043378,120]
[403756290,1769522592551,-178.31648411,0.00043378,120]
[403756291,1769522592675,-540.70327656,0.00043378,120]
[403756292,1769522592793,-579.71652615,0.00043378,120]
[403756293,1769522592909,-500.0,0.00043378,120]
[403756294,1769522593026,-500.0,0.00043378,120]
[403756295,1769522593155,-289.45891233,0.00043378,120]
[403756296,1769522593292,-532.71,0.00043378,120]
[403756297,1769522593414,-500.0,0.00043378,120]
[403756298,1769522593538,-500.0,0.00043378,120]
[403756299,1769522593655,-598.16482409,0.00043378,120]
[403756300,1769522593788,-277.04231517,0.00043378,120]
[403756301,1769522593915,-502.50481772,0.00043378,120]
[403756302,1769522594037,-500.0,0.00043378,120]
[403756303,1769522594154,-500.0,0.00043378,120]
[403756304,1769522594270,-500.0,0.00043378,120]
[403756305,1769522594381,-502.39668994,0.00043378,120]
[403756306,1769522594497,-511.48352014,0.00043378,120]
[403756307,1769522594609,-557.10142601,0.00043378,120]
[403756308,1769522594719,-631.51,0.00043378,120]
[403756309,1769522594828,-500.0,0.00043378,120]
[403756310,1769522594941,-500.0,0.00043378,120]
[403756311,1769522595055,-519.48908297,0.00043378,120]
[403756312,1769522595160,-500.0,0.00043378,120]
[403756313,1769522595267,-500.0,0.00043378,120]
[403756314,1769522595377,-500.0,0.00043378,120]
[403756315,1769522595486,-289.33087637,0.00043378,120]
[403756316,1769522595589,-500.0,0.00043378,120]
[403756317,1769522595692,-548.88090509,0.00043378,120]
[403756318,1769522595790,-500.0,0.00043378,120]
[403756319,1769522595914,-508.0802588,0.00043378,120]
[403756320,1769522596031,-500.0,0.00043378,120]
[403756321,1769522596141,-500.0,0.00043378,120]
[403756322,1769522596246,-501.69782855,0.00043378,120]
[403756323,1769522596349,-500.0,0.00043378,120]
[403756324,1769522596472,-500.0,0.00043378,120]
[403756325,1769522596584,-505.62104911,0.00043378,120]
[403756326,1769522596691,-514.13994044,0.00043378,120]
[403756327,1769522596816,-527.3,0.00043378,120]
[403756328,1769522596942,-500.0,0.00043378,120]
[403756329,1769522597081,-525.86512161,0.00043378,120]
[403756330,1769522597219,-500.0,0.00043378,120]
[403756331,1769522597344,-532.53943913,0.00043378,120]
[403756332,1769522597467,-512.81294604,0.00043378,120]
[403756333,1769522597597,-463.89105518,0.00043378,120]
[403756334,1769522597681,-500.0,0.00043378,120]
[403756335,1769522597765,-500.0,0.00043378,120]
[403756336,1769522597847,-505.03460459,0.00043378,120]
[403756337,1769522597929,-500.0,0.00043378,120]
[403756338,1769522598016,-244.26231055,0.00043378,120]
[403756339,1769522598097,-500.0,0.00043378,120]
[403756340,1769522598176,-509.85884868,0.00043378,120]
[403756341,1769522598254,-500.0,0.00043378,120]
[403756342,1769522598330,-500.0,0.00043378,120]
[403756343,1769522598847,-514.43939231,0.00043378,120]
[403756344,1769522598932,-564.63,0.00043378,120]
[403756345,1769522599010,-500.0,0.00043378,120]
[403756346,1769522599086,-500.0,0.00043378,120]
[403756347,1769522599165,-514.20173397,0.00043378,120]
[403756348,1769522599244,-500.0,0.00043378,120]
[403756349,1769522599323,-500.0,0.00043378,120]
[403756350,1769522599398,-515.31714014,0.00043378,120]
[403756351,1769522599469,-500.0,0.00043378,120]
[403756352,1769522599539,-500.0,0.00043378,120]
[403756353,1769522599604,-515.66923364,0.00043378,120]
[403756354,1769522599670,-501.98,0.00043378,120]
[403756355,1769522599739,-514.36801305,0.00043378,120]
[403756356,1769522599810,-502.16554932,0.00043378,120]
[403756357,1769522599882,-505.71221225,0.00043378,120]
[403756358,1769522599956,-513.64875386,0.00043378,120]
[403756359,1769522600033,-500.0,0.00043378,120]
[403756360,1769522600109,-500.0,0.00043378,120]
[403756361,1769522600185,-500.0,0.00043378,120]
[403756362,1769522600262,-500.0,0.00043378,120]
[403756363,1769522600342,-500.0,0.00043378,120]
[403756364,1769522600423,-500.0,0.00043378,120]
[403756365,1769522600502,-500.0,0.00043378,120]
[403756366,1769522600580,-500.0,0.00043378,120]
[403756367,1769522600660,-501.42440896,0.00043378,120]
[403756368,1769522600739,-502.03215398,0.00043378,120]
[403756369,1769522600815,-500.0,0.00043378,120]
[403756370,1769522600892,-509.60186891,0.00043378,120]
[403756371,1769522600969,-512.73,0.00043378,120]
[403756372,1769522601046,-500.0,0.00043378,120]
[403756373,1769522601127,-513.62629474,0.00043378,120]
[403756374,1769522601205,-500.0,0.00043378,120]
[403756375,1769522601281,-500.0,0.00043378,120]
[403756376,1769522601356,-505.42378578,0.00043378,120]
[403756377,1769522601430,-515.46171006,0.00043378,120]
[403756378,1769522601504,-539.96627018,0.00043378,60]
[403756379,1769522601576,-513.78966553,0.00043378,120]
[403756380,1769522601645,-500.0,0.00043378,120]
[403756381,1769522601717,-500.0,0.00043378,120]
[403756382,1769522601789,-501.72917844,0.00043378,120]
[403756383,1769522601863,-500.64482034,0.00043378,120]
[403756384,1769522601937,-508.08116886,0.00043378,120]
[403756385,1769522602011,-500.0,0.00043378,120]
[403756386,1769522602078,-530.08,0.00043378,120]
[403756387,1769522602143,-500.0,0.00043378,120]
[403756388,1769522602211,-543.4110094,0.00043378,120]
[403756389,1769522602280,-500.0,0.00043378,120]
[403756390,1769522602350,-500.0,0.00043378,120]
[403756391,1769522602417,-636.74746836,0.00043378,120]
[403756392,1769522602483,-500.0,0.00043378,120]
[403756393,1769522602545,-528.34192614,0.00043378,120]
[403756394,1769522602610,-500.0,0.00043378,120]
[403756395,1769522602672,-500.0,0.00043378,120]
[403756396,1769522602741,-500.0,0.00043378,120]
[403756397,1769522602811,-520.83417646,0.00043378,120]
[403756398,1769522602885,-506.77842878,0.00043378,120]
[403756399,1769522602963,-511.02504469,0.00043378,120]
[403756400,1769522603039,-500.0,0.00043378,120]
[403756401,1769522603112,-515.15329563,0.00043378,120]
[403756402,1769522603185,-637.06651517,0.00043378,120]
[403756403,1769522603257,-509.50395255,0.00043378,120]
[403756404,1769522603327,-500.0,0.00043378,120]
[403756405,1769522603398,-500.0,0.00043378,120]
[403756406,1769522603469,-530.08625167,0.00043378,120]
[403756407,1769522603541,-500.0,0.00043378,120]
[403756408,1769522603610,-500.0,0.00043378,120]
[403756409,1769522603675,-609.83991892,0.00043378,120]
[403756410,1769522603746,-339.07266475,0.00043378,120]
[403756411,1769522603822,-507.87837335,0.00043378,120]
[403756412,1769522603899,-500.0,0.00043378,120]
[403756413,1769522603978,-502.80350403,0.00043378,120]
[403756414,1769522604060,-503.24962556,0.00043378,120]
[403756415,1769522604140,-500.0,0.00043378,120]
[403756416,1769522604217,-500.0,0.00043378,120]
[403756417,1769522604293,-457.24627917,0.00043378,120]
[403756418,1769522604372,-559.36062563,0.00043378,120]
[403756419,1769522604451,-645.88,0.00043378,120]
[403756420,1769522604529,-511.14832713,0.00043378,120]
[403756421,1769522604604,-500.0,0.00043378,120]
[403756422,1769522604682,-500.0,0.00043378,120]
[403756423,1769522604759,-505.99245716,0.00043378,120]
[403756424,1769522604838,-500.0,0.00043378,120]
[403756425,1769522604922,-506.84475664,0.00043378,120]
[403756426,1769522605002,-500.0,0.00043378,120]
[403756427,1769522605079,-500.0,0.00043378,90]
[403756428,1769522605159,-513.69011265,0.00043378,120]
[403756429,1769522605238,-500.0,0.00043378,120]
[403756430,1769522605320,-500.0,0.00043378,120]
[403756431,1769522605397,-252.12418338,0.00043378,120]
[403756432,1769522605473,-534.15421531,0.00043378,120]
[403756433,1769522605549,-500.0,0.00043378,120]
[403756434,1769522605882,-500.0,0.00043378,120]
[403756435,1769522605962,-500.0,0.00043378,120]
[403756436,1769522606040,-612.04,0.00043378,120]
[403756437,1769522606120,-500.0,0.00043378,120]
[403756438,1769522606197,-500.0,0.00043378,120]
[403756439,1769522606272,-500.0,0.00043378,120]
[403756440,1769522606349,-500.0,0.00043378,120]
[403756441,1769522606424,-443.13339786,0.00043378,120]
[403756442,1769522606499,-506.07356756,0.00043378,120]
[403756443,1769522606573,-500.0,0.00043378,120]
[403756444,1769522606646,-500.0,0.00043378,120]
[403756445,1769522606721,-517.2602699,0.00043378,120]
[403756446,1769522606799,-500.0,0.00043378,120]
[403756447,1769522606878,-186.98610638,0.00043378,120]
[403756448,1769522606956,-500.0,0.00043378,120]
[403756449,1769522607034,-500.0,0.00043378,120]
[403756450,1769522607110,-500.0,0.00043378,120]
[403756451,1769522607191,-414.7676982,0.00043378,120]
[403756452,1769522607273,-503.816155,0.00043378,120]
[403756453,1769522607352,-519.72,0.00043378,120]
[403756454,1769522607433,-500.0,0.00043378,120]
[403756455,1769522607511,-500.0,0.00043378,120]
[403756456,1769522607588,-171.45,0.00043378,120]
[403756457,1769522607663,-514.8202926,0.00043378,120]
[403756458,1769522607738,-514.73718885,0.00043378,120]
[403756459,1769522607812,-500.0,0.00043378,120]
[403756460,1769522607892,-500.0,0.00043378,120]
[403756461,1769522607973,-506.66623445,0.00043378,120]
[403756462,1769522608051,-500.0,0.00043378,120]
[403756463,1769522608128,-500.0,0.00043378,120]
[403756464,1769522608208,-555.15099343,0.00043378,120]
[403756465,1769522608284,-500.0,0.00043378,120]
[403756466,1769522608360,-602.02,0.00043378,120]
[403756467,1769522608435,-500.0,0.00043378,120]
[403756468,1769522608505,-627.3,0.00043378,120]
[403756469,1769522608572,-524.44621854,0.00043378,120]
[403756470,1769522608637,-500.0,0.00043378,120]
[403756471,1769522608704,-500.0,0.00043378,120]
[403756472,1769522608767,-500.0,0.00043378,120]
[403756473,1769522608831,-511.3317691,0.00043378,120]
[403756474,1769522608895,-500.0,0.00043378,120]
[403756475,1769522608967,-500.0,0.00043378,120]
[403756476,1769522609038,-530.15545063,0.00043378,120]
[403756477,1769522609112,-500.0,0.00043378,120]
[403756478,1769522609190,-500.0,0.00043378,120]
[403756479,1769522609269,-500.0,0.00043378,120]
[403756480,1769522609352,-513.81994461,0.00043378,120]
[403756481,1769522609437,-611.28,0.00043378,120]
[403756482,1769522609507,-644.8,0.00043378,120]
[403756483,1769522609574,-500.0,0.00043378,120]
[403756484,1769522609639,-500.0,0.00043378,120]
[403756485,1769522609706,-508.03382981,0.00043378,120]
[403756486,1769522609780,-500.0,0.00043378,120]
[403756487,1769522609856,-500.0,0.00043378,120]
[403756488,1769522609933,-523.60089952,0.00043378,120]
[403756489,1769522610010,-393.49282095,0.00043378,120]
[403756490,1769522610086,-500.0,0.00043378,120]
[403756491,1769522610162,-500.0,0.00043378,120]
[403756492,1769522610236,-500.0,0.00043378,120]
[403756493,1769522610318,-500.0,0.00043378,120]
[403756494,1769522610395,-507.66108353,0.00043378,120]
[403756495,1769522610472,-500.0,0.00043378,120]
[403756496,1769522610546,-500.0,0.00043378,120]
[403756497,1769522610618,-517.77708994,0.00043378,120]
[403756498,1769522610693,-500.0,0.00043378,120]
[403756499,1769522610770,-500.0,0.00043378,120]
[403756500,1769522610849,-500.0,0.00043378,120]
[403756501,1769522610927,-500.0,0.00043378,120]
[403756502,1769522611006,-506.6512191,0.00043378,120]
[403756503,1769522611084,-614.88,0.00043378,120]
[403756504,1769522611162,-550.43353712,0.00043378,120]
[403756505,1769522611238,-500.0,0.00043378,120]
[403756506,1769522611311,-505.10609259,0.00043378,120]
[403756507,1769522611383,-500.0,0.00043378,120]
[403756509,1769522611453,-231.48,0.00043378,120]
[403756510,1769522611519,-212.5,0.00043378,120]
[403756511,1769522611581,-500.0,0.00043378,120]
[403756512,1769522611643,-507.22245491,0.00043378,120]
[403756513,1769522611714,-512.81949099,0.00043378,120]
[403756514,1769522611785,-500.0,0.00043378,120]
[403756515,1769522611849,-569.79734418,0.00043378,120]
[403756516,1769522611917,-500.0,0.00043378,120]
[403756517,1769522611983,-509.03957779,0.00043378,120]
[403756518,1769522612052,-500.0,0.00043378,120]
[403756519,1769522612120,-523.6255747,0.00043378,120]
[403756520,1769522612186,-500.0,0.00043378,120]
[403756521,1769522612252,-632.72645578,0.00043378,120]
[403756522,1769522612317,-526.0274897,0.00043378,120]
[403756523,1769522612382,-500.0,0.00043378,120]
[403756524,1769522612445,-500.0,0.00043378,120]
[403756525,1769522612506,-507.78237719,0.00043378,120]
[403756526,1769522612565,-510.87024635,0.00043378,120]
[403756527,1769522612626,-500.0,0.00043378,120]
[403756528,1769522612686,-500.0,0.00043378,120]
[403756529,1769522612752,-500.0,0.00043378,120]
[403756530,1769522613152,-504.98545656,0.00043378,120]
[403756531,1769522613232,-500.0,0.00043378,120]
[403756532,1769522613316,-500.0,0.00043378,120]
[403756533,1769522613399,-500.0,0.00043378,120]
[403756534,1769522613482,-506.43066367,0.00043378,120]
[403756535,1769522613557,-565.95671265,0.00043378,120]
[403756536,1769522613630,-500.0,0.00043378,120]
[403756537,1769522613700,-512.5591891,0.00043378,120]
[403756538,1769522613770,-500.0,0.00043378,120]
[403756539,1769522613840,-500.0,0.00043378,120]
[403756540,1769522613916,-500.0,0.00043378,120]
[403756541,1769522614004,-200.62857001,0.00043378,120]
[403756542,1769522614083,-587.17,0.00043378,120]
[403756543,1769522614161,-500.0,0.00043378,120]
[403756544,1769522614239,-508.19089018,0.00043378,120]
[403756545,1769522614318,-500.0,0.00043378,120]
[403756546,1769522614391,-500.0,0.00043378,120]
[403756547,1769522614462,-206.08,0.00043378,120]
[403756548,1769522614534,-500.0,0.00043378,120]
[403756549,1769522614608,-506.02951763,0.00043378,120]
[403756550,1769522614684,-500.0,0.00043378,120]
[403756551,1769522614764,-504.9974378,0.00043378,120]
[403756552,1769522614845,-501.62195266,0.00043378,120]
[403756553,1769522614928,-500.0,0.00043378,120]
[403756554,1769522615012,-314.92,0.00043378,120]
[403756555,1769522615094,-500.0,0.00043378,120]
[403756556,1769522615178,-648.75582702,0.00043378,120]
[403756557,1769522615262,-513.03729784,0.00043378,120]
[403756558,1769522615345,-247.90432862,0.00043378,60]
[403756559,1769522615427,-500.0,0.00043378,120]
[403756560,1769522615507,-164.42,0.00043378,120]
[403756561,1769522615586,-500.0,0.00043378,120]
[403756562,1769522615661,-500.0,0.00043378,120]
[403756565,1769522615737,-504.60015597,0.00043378,120]
[403756566,1769522615816,-500.0,0.00043378,120]
[403756567,1769522615893,-500.0,0.00043378,120]
[403756568,1769522615969,-500.0,0.00043378,120]
[403756569,1769522616049,-501.72294745,0.00043378,120]
[403756570,1769522616128,-500.0,0.00043378,120]
[403756571,1769522616207,-500.0,0.00043378,120]
[403756572,1769522616287,-500.0,0.00043378,120]
[403756573,1769522616366,-513.72130282,0.00043378,120]
[403756574,1769522616445,-500.0,0.00043378,120]
[403756575,1769522616522,-500.0,0.00043378,120]
[403756576,1769522616600,-500.0,0.00043378,120]
[403756577,1769522616683,-500.0,0.00043378,120]
[403756578,1769522616761,-537.77340924,0.00043378,120]
[403756579,1769522616841,-537.35775194,0.00043378,120]
[403756580,1769522616921,-353.63414286,0.00043378,120]
[403756581,1769522616999,-512.33577801,0.00043378,120]
[403756582,1769522617077,-559.24544954,0.00043378,120]
[403756583,1769522617155,-500.0,0.00043378,120]
[403756584,1769522617235,-507.52507467,0.00043378,120]
[403756585,1769522617313,-552.03,0.00043378,120]
[403756586,1769522617389,-500.0,0.00043378,120]
[403756587,1769522617465,-500.0,0.00043378,120]
[403756588,1769522617539,-500.0,0.00043378,120]
[403756589,1769522617610,-522.11012477,0.00043378,120]
[403756590,1769522617683,-554.66,0.00043378,120]
[403756591,1769522617762,-500.0,0.00043378,120]
[403756592,1769522617850,-283.58,0.00043378,120]
[403756593,1769522617934,-585.19,0.00043378,120]
[403756594,1769522618016,-500.0,0.00043378,120]
[403756595,1769522618094,-500.0,0.00043378,120]
[403756596,1769522618169,-570.17211248,0.00043378,120]
[403756597,1769522618248,-517.83298531,0.00043378,120]
[403756598,1769522618327,-503.06416832,0.00043378,120]
[403756599,1769522618401,-517.19,0.00043378,120]
[403756600,1769522618470,-500.0,0.00043378,120]
[403756601,1769522618536,-500.0,0.00043378,120]
[403756602,1769522618608,-508.49313177,0.00043378,120]
[403756603,1769522618680,-500.0,0.00043378,120]
[403756604,1769522618758,-500.0,0.00043378,120]
[403756605,1769522618840,-279.47,0.00043378,120]
[403756606,1769522618912,-500.0,0.00043378,120]
[403756607,1769522618994,-500.0,0.00043378,120]
[403756608,1769522619068,-527.50261509,0.00043378,120]
[403756609,1769522619141,-353.36670621,0.00043378,120]
[403756610,1769522619219,-632.14120921,0.00043378,120]
[403756611,1769522619298,-568.6695962,0.00043378,120]
[403756612,1769522619376,-624.73526548,0.00043378,120]
[403756613,1769522619449,-500.0,0.00043378,120]
[403756614,1769522619519,-547.50979447,0.00043378,60]
[403756615,1769522619585,-500.0,0.00043378,120]
[403756616,1769522619648,-355.80411145,0.00043378,120]
[403756617,1769522619715,-500.0,0.00043378,120]
[403756618,1769522619788,-500.0,0.00043378,120]
[403756619,1769522619861,-157.94,0.00043378,120]
[403756620,1769522619934,-500.0,0.00043378,120]
[403756621,1769522620008,-514.95224712,0.00043378,120]
[403756622,1769522620092,-527.59033793,0.00043378,120]
[403756623,1769522620165,-539.02762594,0.00043378,120]
[403756624,1769522620237,-500.0,0.00043378,120]
[403756625,1769522620308,-500.0,0.00043378,120]
[403756626,1769522620795,-500.0,0.00043378,120]
[403756627,1769522620872,-500.0,0.00043378,120]
[403756628,1769522620950,-500.0,0.00043378,120]
[403756629,1769522621028,-184.1,0.00043378,120]
[403756630,1769522621102,-500.0,0.00043378,120]
[403756631,1769522621175,-500.0,0.00043378,120]
[403756632,1769522621260,-551.34658858,0.00043378,120]
[403756633,1769522621335,-536.34068741,0.00043378,120]
[403756634,1769522621403,-500.0,0.00043378,120]
[403756635,1769522621470,-508.40166009,0.00043378,120]
[403756636,1769522621534,-500.0,0.00043378,120]
[403756637,1769522621598,-500.0,0.00043378,120]
[403756638,1769522621666,-500.0,0.00043378,120]
[403756639,1769522621733,-500.0,0.00043378,120]
[403756640,1769522621802,-500.0,0.00043378,120]
[403756641,1769522621873,-518.03552237,0.00043378,120]
[403756642,1769522621943,-556.2321796,0.00043378,120]
[403756643,1769522622019,-528.97160678,0.00043378,120]
[403756644,1769522622095,-500.0,0.00043378,120]
[403756645,1769522622172,-500.0,0.00043378,120]
[403756646,1769522622243,-507.624239,0.00043378,120]
[403756647,1769522622309,-500.0,0.00043378,120]
[403756648,1769522622374,-530.42,0.00043378,120]
[403756649,1769522622437,-557.86651218,0.00043378,120]
[403756650,1769522622502,-500.0,0.00043378,120]
[403756651,1769522622563,-500.0,0.00043378,120]
[403756652,1769522622626,-559.1858121,0.00043378,120]
[403756653,1769522622688,-507.83331335,0.00043378,120]
[403756654,1769522622752,-500.0,0.00043378,120]
[403756655,1769522622821,-508.44654335,0.00043378,120]
[403756656,1769522622898,-166.76,0.00043378,120]
[403756657,1769522622975,-608.92,0.00043378,120]
[403756658,1769522623052,-500.0,0.00043378,120]
[403756659,1769522623130,-500.0,0.00043378,120]
[403756660,1769522623210,-500.0,0.00043378,120]
[403756661,1769522623293,-304.13358258,0.00043378,120]
[403756662,1769522623370,-500.0,0.00043378,120]
[403756663,1769522623448,-500.0,0.00043378,120]
[403756664,1769522623525,-500.0,0.00043378,120]
[403756665,1769522623599,-500.0,0.00043378,120]
[403756666,1769522623677,-500.0,0.00043378,120]
[403756667,1769522623757,-563.0,0.00043378,120]
[403756668,1769522623837,-500.0,0.00043378,120]
[403756669,1769522623918,-500.0,0.00043378,120]
[403756670,1769522624005,-500.0,0.00043378,120]
[403756671,1769522624089,-500.0,0.00043378,120]
[403756672,1769522624171,-330.17,0.00043378,120]
[403756673,1769522624250,-321.34246307,0.00043378,120]
[403756674,1769522624329,-524.64635315,0.00043378,120]
[403756675,1769522624408,-500.0,0.00043378,120]
[403756676,1769522624486,-507.06054317,0.00043378,120]
[403756677,1769522624565,-546.29463006,0.00043378,120]
[403756678,1769522624643,-397.38257761,0.00043378,120]
[403756679,1769522624720,-500.0,0.00043378,120]
[403756680,1769522624796,-500.0,0.00043378,120]
[403756681,1769522624874,-574.7758915,0.00043378,120]
[403756682,1769522624950,-647.45293656,0.00043378,120]
[403756683,1769522625026,-500.0,0.00043378,120]
[403756684,1769522625101,-500.0,0.00043378,120]
[403756685,1769522625173,-500.0,0.00043378,120]
[403756686,1769522625247,-508.81597097,0.00043378,120]
[403756687,1769522625320,-506.10814513,0.00043378,120]
[403756688,1769522625398,-500.0,0.00043378,120]
[403756689,1769522625474,-500.0,0.00043378,120]
[403756690,1769522625547,-203.98401908,0.00043378,120]
[403756691,1769522625615,-504.56451406,0.00043378,120]
[403756692,1769522625686,-540.45694957,0.00043378,120]
[403756693,1769522625763,-500.0,0.00043378,120]
[403756694,1769522625842,-500.0,0.00043378,120]
[403756695,1769522625920,-165.97,0.00043378,120]
[403756696,1769522626001,-500.0,0.00043378,120]
[403756697,1769522626077,-500.0,0.00043378,120]
[403756698,1769522626149,-502.2461269,0.00043378,120]
[403756699,1769522626221,-539.28762701,0.00043378,120]
[403756700,1769522626294,-500.0,0.00043378,60]
[403756701,1769522626368,-500.0,0.00043378,120]
[403756702,1769522626442,-383.4,0.00043378,120]
[403756703,1769522626517,-524.64404649,0.00043378,120]
[403756704,1769522626592,-519.5,0.00043378,120]
[403756705,1769522626667,-500.0,0.00043378,120]
[403756706,1769522626744,-500.0,0.00043378,120]
[403756707,1769522626819,-500.0,0.00043378,120]
[403756708,1769522626895,-217.59,0.00043378,120]
[403756709,1769522626972,-500.0,0.00043378,120]
[403756710,1769522627049,-500.0,0.00043378,120]
[403756711,1769522627127,-500.0,0.00043378,120]
[403756712,1769522627204,-500.0,0.00043378,120]
[403756713,1769522627283,-500.0,0.00043378,120]
[403756714,1769522627360,-500.0,0.00043378,120]
[403756715,1769522627434,-500.0,0.00043378,120]
[403756716,1769522627508,-176.5065754,0.00043378,120]
[403756717,1769522627578,-500.0,0.00043378,120]
[403756718,1769522627646,-514.09095048,0.00043378,120]
[403756719,1769522627716,-505.88638904,0.00043378,120]
[403756720,1769522627790,-500.0,0.00043378,120]
[403756721,1769522628238,-587.37,0.00043378,120]
[403756722,1769522628316,-500.0,0.00043378,120]
[403756723,1769522628394,-500.0,0.00043378,120]
[403756724,1769522628465,-500.0,0.00043378,120]
[403756725,1769522628534,-157.82,0.00043378,120]
[403756726,1769522628600,-500.0,0.00043378,120]
[403756727,1769522628664,-500.0,0.00043378,120]
[403756728,1769522628727,-500.0,0.00043378,120]
[403756729,1769522628792,-505.25161909,0.00043378,120]
[403756730,1769522628859,-450.0,0.00043378,120]
[403756731,1769522628936,-517.91722596,0.00043378,120]
[403756732,1769522629016,-600.33,0.00043378,120]
[403756733,1769522629095,-524.21813636,0.00043378,120]
[403756734,1769522629174,-500.0,0.00043378,120]
[403756735,1769522629254,-500.0,0.00043378,120]
[403756736,1769522629336,-500.0,0.00043378,120]
[403756737,1769522629413,-511.16060717,0.00043378,120]
[403756738,1769522629485,-504.21221303,0.00043378,120]
[403756739,1769522629555,-500.0,0.00043378,120]
[403756740,1769522629620,-155.85,0.00043378,120]
[403756741,1769522629688,-500.0,0.00043378,120]
[403756742,1769522629757,-577.31142034,0.00043378,120]
[403756743,1769522629827,-500.0,0.00043378,120]
[403756744,1769522629902,-502.38349826,0.00043378,120]
[403756745,1769522629981,-500.0,0.00043378,120]
[403756746,1769522630062,-524.41741765,0.00043378,120]
[403756747,1769522630138,-500.0,0.00043378,120]
[403756748,1769522630211,-602.81,0.00043378,120]
[403756749,1769522630287,-500.0,0.00043378,120]
[403756750,1769522630375,-771.36,0.00043378,120]
[403756751,1769522630475,-771.36,0.00043378,120]
[403756752,1769522630555,-771.36,0.00043378,120]
[403756753,1769522630631,-500.0,0.00043378,120]
[403756754,1769522630708,-771.36,0.00043378,120]
[403756755,1769522630790,-500.0,0.00043378,120]
[403756756,1769522630867,-771.36,0.00043378,120]
[403756757,1769522630948,-500.0,0.00043378,120]
[403756758,1769522631028,-771.36,0.00043378,120]
[403756759,1769522631106,-771.36,0.00043378,120]
[403756760,1769522631192,-771.36,0.00043378,120]
[403756761,1769522631277,-771.36,0.00043378,120]
[403756762,1769522631359,-771.36,0.00043378,120]
[403756763,1769522631440,-524.8,0.00043378,120]
[403756764,1769522631520,-771.36,0.00043378,120]
[403756765,1769522631600,-771.36,0.00043378,120]
[403756766,1769522631678,-771.36,0.00043378,120]
[403756767,1769522631752,-771.36,0.00043378,120]
[403756768,1769522631823,-771.36,0.00043378,120]
[403756769,1769522631900,-771.36,0.00043378,120]
[403756770,1769522631990,-352.53227512,0.00043378,120]
[403756771,1769522632068,-771.36,0.00043378,120]
[403756772,1769522632137,-771.36,0.00043378,120]
[403756773,1769522632206,-500.0,0.00043378,120]
[403756774,1769522632275,-560.01612735,0.00043378,120]
[403756775,1769522632350,-500.0,0.00043378,120]
[403756777,1769522632422,-771.36,0.00043378,120]
[403756778,1769522632489,-771.36,0.00043378,120]
[403756779,1769522632554,-771.36,0.00043378,120]
[403756780,1769522632619,-771.36,0.00043378,120]
[403756781,1769522632684,-771.36,0.00043378,120]
[403756782,1769522632749,-500.0,0.00043378,120]
[403756783,1769522632816,-771.58,0.00043378,120]